[Event "Titled Tuesday Blitz January 10 Early 2023"]
[White "Colas, Joshua"]
[Black "Mikhailovsky, Vladimir"]
[WhiteFideId "2044447"]
[BlackFideId "34105414"]
[WhiteElo "2342"]
[BlackElo "2215"]
[Result "0-1"]
[Round "02"]
[TimeControl "180+2"]
[Date "2023.01.10"]
[WhiteClock "0:00:03"]
[BlackClock "0:00:07"]

1. Nf3 {[%clk 0:03:00]}  d6 {[%clk 0:02:59]} 2. e3 {[%clk 0:02:56]}  e5 {[%clk 0:02:59]} 3. d4 {[%clk 0:02:56]}  Nd7 {[%clk 0:02:54]} 4. g3 {[%clk 0:02:54]}  Ngf6 {[%clk 0:02:54]} 5. Bg2 {[%clk 0:02:54]}  Be7 {[%clk 0:02:54]} 6. O-O {[%clk 0:02:55]}  O-O {[%clk 0:02:55]} 7. c4 {[%clk 0:02:56]}  c6 {[%clk 0:02:54]} 8. Nc3 {[%clk 0:02:56]}  Re8 {[%clk 0:02:53]} 9. e4 {[%clk 0:02:54]}  Qc7 {[%clk 0:02:32]} 10. h3 {[%clk 0:02:46]}  Nf8 {[%clk 0:02:24]} 11. Be3 {[%clk 0:02:45]}  Ne6 {[%clk 0:02:20]} 12. Rc1 {[%clk 0:02:35]}  c5 {[%clk 0:02:08]} 13. Nd5 {[%clk 0:02:22]}  Nxd5 {[%clk 0:02:06]} 14. cxd5 {[%clk 0:02:23]}  Nxd4 {[%clk 0:01:57]} 15. Nxd4 {[%clk 0:02:08]}  exd4 {[%clk 0:01:56]} 16. Bxd4 {[%clk 0:02:08]}  Qa5 {[%clk 0:01:42]} 17. Bc3 {[%clk 0:01:57]}  Qxa2 {[%clk 0:01:18]} 18. e5 {[%clk 0:01:44]}  Qa6 {[%clk 0:01:16]} 19. e6 {[%clk 0:01:36]}  fxe6 {[%clk 0:00:40]} 20. dxe6 {[%clk 0:01:37]}  Bxe6 {[%clk 0:00:29]} 21. Bd5 {[%clk 0:01:35]}  Bxd5 {[%clk 0:00:29]} 22. Qxd5+ {[%clk 0:01:36]}  Kh8 {[%clk 0:00:30]} 23. Qf7 {[%clk 0:01:29]}  Bf8 {[%clk 0:00:30]} 24. Rfe1 {[%clk 0:01:28]}  Qc6 {[%clk 0:00:27]} 25. h4 {[%clk 0:01:13]}  Rad8 {[%clk 0:00:25]} 26. h5 {[%clk 0:01:12]}  Rxe1+ {[%clk 0:00:25]} 27. Rxe1 {[%clk 0:01:12]}  Qd7 {[%clk 0:00:26]} 28. Qf3 {[%clk 0:00:33]}  d5 {[%clk 0:00:22]} 29. Be5 {[%clk 0:00:30]}  Kg8 {[%clk 0:00:11]} 30. h6 {[%clk 0:00:30]}  Qf7 {[%clk 0:00:11]} 31. Qg4 {[%clk 0:00:28]}  Qg6 {[%clk 0:00:11]} 32. Qh4 {[%clk 0:00:18]}  Re8 {[%clk 0:00:11]} 33. hxg7 {[%clk 0:00:12]}  Bxg7 {[%clk 0:00:12]} 34. f4 {[%clk 0:00:12]}  Bxe5 {[%clk 0:00:11]} 35. fxe5 {[%clk 0:00:13]}  d4 {[%clk 0:00:11]} 36. Qf4 {[%clk 0:00:09]}  d3 {[%clk 0:00:06]} 37. Rd1 {[%clk 0:00:04]}  b5 {[%clk 0:00:03]} 38. b4 {[%clk 0:00:03]}  c4 {[%clk 0:00:03]} 39. Re1 {[%clk 0:00:04]}  c3 {[%clk 0:00:04]} 40. Rf1 {[%clk 0:00:02]}  d2 {[%clk 0:00:03]} 41. e6 {[%clk 0:00:02]}  Qxe6 {[%clk 0:00:04]} 42. Qg5+ {[%clk 0:00:02]}  Qg6 {[%clk 0:00:04]} 43. Qd5+ {[%clk 0:00:02]}  Kh8 {[%clk 0:00:05]} 44. Qd4+ {[%clk 0:00:03]}  Qg7 {[%clk 0:00:05]} 45. Qd3 {[%clk 0:00:03]}  Rg8 {[%clk 0:00:04]} 46. Kg2 {[%clk 0:00:02]}  Qxg3+ {[%clk 0:00:04]} 47. Qxg3 {[%clk 0:00:02]}  Rxg3+ {[%clk 0:00:05]} 48. Kxg3 {[%clk 0:00:03]}  c2 {[%clk 0:00:06]} 49. Rf8+ {[%clk 0:00:02]}  Kg7 {[%clk 0:00:06]} 50. Rc8 {[%clk 0:00:03]}  d1=Q {[%clk 0:00:07]} 0-1


[Site "https://www.chess.com"]

[Event "Titled Tuesday Blitz January 10 Early 2023"]
[White "Urazayev, Arystanbek"]
[Black "Srebrnic, Marko"]
[WhiteFideId "13709810"]
[BlackFideId "14603616"]
[WhiteElo "2460"]
[BlackElo "2366"]
[Result "1-0"]
[Round "02"]
[TimeControl "180+2"]
[Date "2023.01.10"]
[WhiteClock "0:00:51"]
[BlackClock "0:00:01"]

1. e4 {[%clk 0:03:00]}  c5 {[%clk 0:02:49]} 2. Nf3 {[%clk 0:03:01]}  Nc6 {[%clk 0:02:48]} 3. Bb5 {[%clk 0:03:00]}  g6 {[%clk 0:02:47]} 4. O-O {[%clk 0:03:01]}  Bg7 {[%clk 0:02:48]} 5. c3 {[%clk 0:03:01]}  Nf6 {[%clk 0:02:48]} 6. e5 {[%clk 0:03:02]}  Nd5 {[%clk 0:02:48]} 7. d4 {[%clk 0:03:03]}  cxd4 {[%clk 0:02:48]} 8. cxd4 {[%clk 0:03:04]}  O-O {[%clk 0:02:48]} 9. Nc3 {[%clk 0:03:04]}  Nxc3 {[%clk 0:02:48]} 10. bxc3 {[%clk 0:03:05]}  d6 {[%clk 0:02:47]} 11. Re1 {[%clk 0:03:06]}  dxe5 {[%clk 0:02:47]} 12. Bxc6 {[%clk 0:03:06]}  bxc6 {[%clk 0:02:47]} 13. Nxe5 {[%clk 0:03:06]}  Qb6 {[%clk 0:02:21]} 14. Ba3 {[%clk 0:03:06]}  Bf5 {[%clk 0:02:14]} 15. Bxe7 {[%clk 0:03:05]}  Rfe8 {[%clk 0:02:14]} 16. Bc5 {[%clk 0:03:06]}  Qb5 {[%clk 0:02:10]} 17. a4 {[%clk 0:03:06]}  Qa6 {[%clk 0:02:10]} 18. Qf3 {[%clk 0:03:05]}  Bxe5 {[%clk 0:02:08]} 19. dxe5 {[%clk 0:03:04]}  Rad8 {[%clk 0:02:01]} 20. Bd6 {[%clk 0:03:03]}  Qc4 {[%clk 0:01:57]} 21. h3 {[%clk 0:02:56]}  f6 {[%clk 0:01:45]} 22. g4 {[%clk 0:02:43]}  fxe5 {[%clk 0:01:40]} 23. Bxe5 {[%clk 0:02:41]}  Rd3 {[%clk 0:01:23]} 24. Qf4 {[%clk 0:02:21]}  Qxf4 {[%clk 0:01:19]} 25. Bxf4 {[%clk 0:02:21]}  Rxe1+ {[%clk 0:01:20]} 26. Rxe1 {[%clk 0:02:21]}  Bd7 {[%clk 0:01:21]} 27. Re7 {[%clk 0:02:09]}  c5 {[%clk 0:01:19]} 28. a5 {[%clk 0:02:08]}  a6 {[%clk 0:01:16]} 29. Be5 {[%clk 0:02:01]}  Bc6 {[%clk 0:01:15]} 30. Rg7+ {[%clk 0:02:01]}  Kf8 {[%clk 0:01:15]} 31. Rxh7 {[%clk 0:02:01]}  Be4 {[%clk 0:01:04]} 32. f4 {[%clk 0:01:46]}  Rd2 {[%clk 0:00:54]} 33. Rc7 {[%clk 0:01:43]}  Rg2+ {[%clk 0:00:32]} 34. Kf1 {[%clk 0:01:42]}  Ra2 {[%clk 0:00:30]} 35. Rxc5 {[%clk 0:01:42]}  Bg2+ {[%clk 0:00:31]} 36. Ke1 {[%clk 0:01:41]}  Bxh3 {[%clk 0:00:32]} 37. g5 {[%clk 0:01:42]}  Bf5 {[%clk 0:00:26]} 38. Bf6 {[%clk 0:01:27]}  Ke8 {[%clk 0:00:20]} 39. Rd5 {[%clk 0:01:24]}  Bg4 {[%clk 0:00:13]} 40. c4 {[%clk 0:01:18]}  Re2+ {[%clk 0:00:12]} 41. Kf1 {[%clk 0:01:18]}  Re4 {[%clk 0:00:12]} 42. Be5 {[%clk 0:01:08]}  Be2+ {[%clk 0:00:12]} 43. Kf2 {[%clk 0:01:06]}  Bxc4 {[%clk 0:00:12]} 44. Rd6 {[%clk 0:01:06]}  Re2+ {[%clk 0:00:07]} 45. Kf3 {[%clk 0:01:06]}  Ra2 {[%clk 0:00:07]} 46. Rxg6 {[%clk 0:01:05]}  Rxa5 {[%clk 0:00:08]} 47. Rb6 {[%clk 0:00:59]}  Ra2 {[%clk 0:00:05]} 48. g6 {[%clk 0:00:55]}  a5 {[%clk 0:00:05]} 49. f5 {[%clk 0:00:52]}  Bd3 {[%clk 0:00:03]} 50. Rb8+ {[%clk 0:00:50]}  Kd7 {[%clk 0:00:02]} 51. g7 {[%clk 0:00:51]}  Bc4 {[%clk 0:00:01]} 52. g8=Q {[%clk 0:00:51]} 1-0


[Site "https://www.chess.com"]

[Event "Titled Tuesday Blitz January 10 Early 2023"]
[White "Hnydiuk, Aleksander"]
[Black "Mahdavi, Reza"]
[WhiteFideId "1109057"]
[BlackFideId "12595926"]
[WhiteElo "2363"]
[BlackElo "2339"]
[Result "0-1"]
[Round "02"]
[TimeControl "180+2"]
[Date "2023.01.10"]
[WhiteClock "0:00:01"]
[BlackClock "0:01:19"]

1. e4 {[%clk 0:03:00]}  c5 {[%clk 0:02:58]} 2. Nf3 {[%clk 0:03:00]}  e6 {[%clk 0:02:58]} 3. d4 {[%clk 0:03:00]}  cxd4 {[%clk 0:02:59]} 4. Nxd4 {[%clk 0:03:01]}  Nc6 {[%clk 0:02:59]} 5. Nc3 {[%clk 0:03:01]}  Qc7 {[%clk 0:02:59]} 6. Be3 {[%clk 0:02:56]}  a6 {[%clk 0:02:59]} 7. a3 {[%clk 0:02:48]}  Nf6 {[%clk 0:02:59]} 8. f4 {[%clk 0:02:44]}  d6 {[%clk 0:02:59]} 9. Qf3 {[%clk 0:02:44]}  Be7 {[%clk 0:02:53]} 10. O-O-O {[%clk 0:02:43]}  Nxd4 {[%clk 0:02:52]} 11. Rxd4 {[%clk 0:02:39]}  O-O {[%clk 0:02:53]} 12. g4 {[%clk 0:02:36]}  b5 {[%clk 0:02:45]} 13. g5 {[%clk 0:02:34]}  Nd7 {[%clk 0:02:46]} 14. h4 {[%clk 0:02:22]}  Bb7 {[%clk 0:02:42]} 15. h5 {[%clk 0:02:22]}  e5 {[%clk 0:02:40]} 16. Nd5 {[%clk 0:02:08]}  Bxd5 {[%clk 0:02:39]} 17. Rxd5 {[%clk 0:02:09]}  exf4 {[%clk 0:02:39]} 18. Bxf4 {[%clk 0:02:09]}  Rac8 {[%clk 0:02:40]} 19. Rd2 {[%clk 0:01:58]}  Ne5 {[%clk 0:02:40]} 20. Bxe5 {[%clk 0:01:44]}  dxe5 {[%clk 0:02:41]} 21. Qg4 {[%clk 0:01:24]}  Rfd8 {[%clk 0:02:38]} 22. Rxd8+ {[%clk 0:01:09]}  Qxd8 {[%clk 0:02:39]} 23. Rg1 {[%clk 0:00:59]}  g6 {[%clk 0:02:35]} 24. hxg6 {[%clk 0:00:59]}  hxg6 {[%clk 0:02:34]} 25. Kb1 {[%clk 0:00:51]}  Rc5 {[%clk 0:02:29]} 26. Bd3 {[%clk 0:00:47]}  Kg7 {[%clk 0:02:23]} 27. Qh4 {[%clk 0:00:28]}  Qh8 {[%clk 0:02:21]} 28. Qf2 {[%clk 0:00:29]}  Rc7 {[%clk 0:02:08]} 29. c3 {[%clk 0:00:28]}  Qh3 {[%clk 0:02:04]} 30. Bc2 {[%clk 0:00:27]}  a5 {[%clk 0:02:04]} 31. Bb3 {[%clk 0:00:27]}  Bd8 {[%clk 0:01:54]} 32. Rf1 {[%clk 0:00:27]}  Bxg5 {[%clk 0:01:49]} 33. Bxf7 {[%clk 0:00:27]}  Bf4 {[%clk 0:01:50]} 34. Bd5 {[%clk 0:00:25]}  b4 {[%clk 0:01:50]} 35. axb4 {[%clk 0:00:18]}  axb4 {[%clk 0:01:51]} 36. Rg1 {[%clk 0:00:13]}  bxc3 {[%clk 0:01:50]} 37. Rxg6+ {[%clk 0:00:13]}  Kh7 {[%clk 0:01:39]} 38. Rc6 {[%clk 0:00:09]}  Rxc6 {[%clk 0:01:21]} 39. Bxc6 {[%clk 0:00:10]}  Qd3+ {[%clk 0:01:22]} 40. Qc2 {[%clk 0:00:08]}  Qf1+ {[%clk 0:01:23]} 41. Ka2 {[%clk 0:00:08]}  Qc4+ {[%clk 0:01:23]} 42. Qb3 {[%clk 0:00:04]}  Qxc6 {[%clk 0:01:21]} 43. Qf7+ {[%clk 0:00:04]}  Kh6 {[%clk 0:01:21]} 44. Qf8+ {[%clk 0:00:05]}  Kg5 {[%clk 0:01:21]} 45. Qg7+ {[%clk 0:00:04]}  Qg6 {[%clk 0:01:19]} 46. Qe7+ {[%clk 0:00:04]}  Kg4 {[%clk 0:01:19]} 47. Qd7+ {[%clk 0:00:04]}  Kh4 {[%clk 0:01:18]} 48. Qe7+ {[%clk 0:00:03]}  Kg3 {[%clk 0:01:18]} 49. bxc3 {[%clk 0:00:02]}  Qxe4 {[%clk 0:01:19]} 50. Qg7+ {[%clk 0:00:01]}  Kf2 {[%clk 0:01:19]} 0-1


[Site "https://www.chess.com"]

[Event "Titled Tuesday Blitz January 10 Early 2023"]
[White "Boros, Denes"]
[Black "ArchibaldCerveza29"]
[WhiteFideId "722340"]
[WhiteElo "2406"]
[BlackElo "2537"]
[Result "1-0"]
[Round "02"]
[TimeControl "180+2"]
[Date "2023.01.10"]
[WhiteClock "0:01:27"]
[BlackClock "0:00:03"]

1. d4 {[%clk 0:03:00]}  d5 {[%clk 0:02:59]} 2. Nc3 {[%clk 0:03:01]}  Nf6 {[%clk 0:02:59]} 3. Nf3 {[%clk 0:03:02]}  c5 {[%clk 0:02:52]} 4. Bf4 {[%clk 0:03:01]}  e6 {[%clk 0:02:49]} 5. e3 {[%clk 0:03:01]}  Bd6 {[%clk 0:02:49]} 6. Bb5+ {[%clk 0:02:59]}  Nc6 {[%clk 0:02:47]} 7. dxc5 {[%clk 0:03:00]}  Bxc5 {[%clk 0:02:45]} 8. O-O {[%clk 0:03:00]}  O-O {[%clk 0:02:45]} 9. Qe2 {[%clk 0:03:00]}  a6 {[%clk 0:02:45]} 10. Bd3 {[%clk 0:03:00]}  Re8 {[%clk 0:02:41]} 11. Bg5 {[%clk 0:02:58]}  Be7 {[%clk 0:02:34]} 12. Rad1 {[%clk 0:02:57]}  Qb6 {[%clk 0:02:06]} 13. Rb1 {[%clk 0:02:39]}  h6 {[%clk 0:02:03]} 14. Bh4 {[%clk 0:02:38]}  Qa5 {[%clk 0:01:49]} 15. a3 {[%clk 0:02:35]}  b5 {[%clk 0:01:15]} 16. e4 {[%clk 0:02:35]}  Bb7 {[%clk 0:01:06]} 17. Rfe1 {[%clk 0:02:19]}  Rad8 {[%clk 0:00:44]} 18. Bxf6 {[%clk 0:01:58]}  Bxf6 {[%clk 0:00:44]} 19. exd5 {[%clk 0:01:59]}  Bxc3 {[%clk 0:00:15]} 20. dxc6 {[%clk 0:01:56]}  Bxe1 {[%clk 0:00:13]} 21. cxb7 {[%clk 0:01:56]}  Bxf2+ {[%clk 0:00:07]} 22. Qxf2 {[%clk 0:01:55]}  Qc7 {[%clk 0:00:06]} 23. Re1 {[%clk 0:01:47]}  Qxb7 {[%clk 0:00:06]} 24. Qg3 {[%clk 0:01:46]}  Qd5 {[%clk 0:00:04]} 25. Kh1 {[%clk 0:01:42]}  Re7 {[%clk 0:00:04]} 26. Be4 {[%clk 0:01:36]}  Qc5 {[%clk 0:00:03]} 27. Ne5 {[%clk 0:01:33]}  Rc8 {[%clk 0:00:01]} 28. Bd3 {[%clk 0:01:32]}  f6 {[%clk 0:00:01]} 29. Ng4 {[%clk 0:01:32]}  Kf8 {[%clk 0:00:01]} 30. Nf2 {[%clk 0:01:32]}  Qg5 {[%clk 0:00:01]} 31. Qf3 {[%clk 0:01:31]}  Qd5 {[%clk 0:00:01]} 32. Qe2 {[%clk 0:01:29]}  Qg5 {[%clk 0:00:01]} 33. Rf1 {[%clk 0:01:29]}  Qe5 {[%clk 0:00:01]} 34. Ne4 {[%clk 0:01:29]}  Ke8 {[%clk 0:00:01]} 35. Qf2 {[%clk 0:01:27]}  Rec7 {[%clk 0:00:02]} 36. b4 {[%clk 0:01:26]}  f5 {[%clk 0:00:02]} 37. Nc5 {[%clk 0:01:27]}  Rxc5 {[%clk 0:00:02]} 38. bxc5 {[%clk 0:01:28]}  Rxc5 {[%clk 0:00:02]} 39. Re1 {[%clk 0:01:28]}  Qd6 {[%clk 0:00:02]} 40. Bxf5 {[%clk 0:01:27]}  Rxf5 {[%clk 0:00:02]} 41. Qxf5 {[%clk 0:01:27]}  Ke7 {[%clk 0:00:02]} 42. Qg6 {[%clk 0:01:27]}  Qd2 {[%clk 0:00:02]} 43. Qxg7+ {[%clk 0:01:27]}  Kd8 {[%clk 0:00:03]} 44. Qg3 {[%clk 0:01:27]}  Qxc2 {[%clk 0:00:03]} 45. Qd6+ {[%clk 0:01:27]} 1-0


[Site "https://www.chess.com"]

[Event "Titled Tuesday Blitz January 10 Early 2023"]
[White "Bryakin, Mikhail"]
[Black "Przybylski, Wojciech"]
[WhiteFideId "4165314"]
[BlackFideId "1117599"]
[WhiteElo "2455"]
[BlackElo "2321"]
[Result "0-1"]
[Round "02"]
[TimeControl "180+2"]
[Date "2023.01.10"]
[WhiteClock "0:00:02"]
[BlackClock "0:00:11"]

1. Nf3 {[%clk 0:03:00]}  Nf6 {[%clk 0:02:59]} 2. c4 {[%clk 0:02:55]}  c6 {[%clk 0:02:59]} 3. d4 {[%clk 0:02:52]}  d5 {[%clk 0:02:59]} 4. g3 {[%clk 0:02:52]}  e6 {[%clk 0:02:58]} 5. Qc2 {[%clk 0:02:49]}  Nbd7 {[%clk 0:02:58]} 6. Bg2 {[%clk 0:02:50]}  Bd6 {[%clk 0:02:56]} 7. O-O {[%clk 0:02:50]}  O-O {[%clk 0:02:55]} 8. Nbd2 {[%clk 0:02:47]}  Re8 {[%clk 0:02:55]} 9. Rd1 {[%clk 0:02:36]}  h6 {[%clk 0:02:48]} 10. e4 {[%clk 0:02:33]}  dxe4 {[%clk 0:02:44]} 11. Nxe4 {[%clk 0:02:34]}  Bf8 {[%clk 0:02:43]} 12. b3 {[%clk 0:02:28]}  a5 {[%clk 0:02:40]} 13. a4 {[%clk 0:02:25]}  Nxe4 {[%clk 0:02:33]} 14. Qxe4 {[%clk 0:02:24]}  f5 {[%clk 0:02:33]} 15. Qe2 {[%clk 0:02:22]}  Qb6 {[%clk 0:02:18]} 16. Be3 {[%clk 0:02:11]}  Qa6 {[%clk 0:02:13]} 17. Ne5 {[%clk 0:01:56]}  Bb4 {[%clk 0:01:45]} 18. Nxd7 {[%clk 0:01:47]}  Bxd7 {[%clk 0:01:44]} 19. Bf4 {[%clk 0:01:46]}  Rad8 {[%clk 0:01:36]} 20. Be5 {[%clk 0:01:45]}  b5 {[%clk 0:01:25]} 21. axb5 {[%clk 0:01:37]}  cxb5 {[%clk 0:01:25]} 22. f4 {[%clk 0:01:14]}  bxc4 {[%clk 0:00:55]} 23. bxc4 {[%clk 0:01:13]}  Bc6 {[%clk 0:00:54]} 24. Qb2 {[%clk 0:00:51]}  Bxg2 {[%clk 0:00:49]} 25. Qxb4 {[%clk 0:00:48]}  axb4 {[%clk 0:00:20]} 26. Rxa6 {[%clk 0:00:49]}  Be4 {[%clk 0:00:20]} 27. Rb6 {[%clk 0:00:48]}  b3 {[%clk 0:00:20]} 28. Rd2 {[%clk 0:00:39]}  Rc8 {[%clk 0:00:17]} 29. Rb4 {[%clk 0:00:38]}  Re7 {[%clk 0:00:14]} 30. Rxb3 {[%clk 0:00:13]}  Rxc4 {[%clk 0:00:13]} 31. Kf2 {[%clk 0:00:14]}  Rc1 {[%clk 0:00:13]} 32. Rb8+ {[%clk 0:00:13]}  Kh7 {[%clk 0:00:13]} 33. Ra2 {[%clk 0:00:13]}  Rb7 {[%clk 0:00:12]} 34. Rxb7 {[%clk 0:00:13]}  Bxb7 {[%clk 0:00:12]} 35. Ra7 {[%clk 0:00:14]}  Rb1 {[%clk 0:00:13]} 36. h3 {[%clk 0:00:10]}  g5 {[%clk 0:00:13]} 37. fxg5 {[%clk 0:00:04]}  hxg5 {[%clk 0:00:13]} 38. h4 {[%clk 0:00:05]}  gxh4 {[%clk 0:00:13]} 39. gxh4 {[%clk 0:00:06]}  Kg6 {[%clk 0:00:13]} 40. Ke3 {[%clk 0:00:06]}  Rb3+ {[%clk 0:00:13]} 41. Kd2 {[%clk 0:00:07]}  Kh5 {[%clk 0:00:13]} 42. Bf6 {[%clk 0:00:06]}  Kg4 {[%clk 0:00:13]} 43. Ra5 {[%clk 0:00:05]}  f4 {[%clk 0:00:13]} 44. Rg5+ {[%clk 0:00:05]}  Kh3 {[%clk 0:00:13]} 45. Be5 {[%clk 0:00:04]}  f3 {[%clk 0:00:13]} 46. Rg3+ {[%clk 0:00:03]}  Kxh4 {[%clk 0:00:13]} 47. Ke1 {[%clk 0:00:03]}  Be4 {[%clk 0:00:12]} 48. Kf2 {[%clk 0:00:03]}  Rb2+ {[%clk 0:00:12]} 49. Ke3 {[%clk 0:00:02]}  Bd5 {[%clk 0:00:12]} 50. Kf4 {[%clk 0:00:02]}  Kh5 {[%clk 0:00:11]} 51. Rh3+ {[%clk 0:00:01]}  Kg6 {[%clk 0:00:11]} 52. Rg3+ {[%clk 0:00:02]}  Kf7 {[%clk 0:00:11]} 0-1


[Site "https://www.chess.com"]

[Event "Titled Tuesday Blitz January 10 Early 2023"]
[White "Batsuren, Dambasuren"]
[Black "Kvaloy, Aksel Bu"]
[WhiteFideId "4902920"]
[BlackFideId "1528815"]
[WhiteElo "2525"]
[BlackElo "2321"]
[Result "1-0"]
[Round "02"]
[TimeControl "180+2"]
[Date "2023.01.10"]
[WhiteClock "0:00:33"]
[BlackClock "0:00:10"]

1. d4 {[%clk 0:03:00]}  Nf6 {[%clk 0:02:58]} 2. c4 {[%clk 0:03:01]}  e6 {[%clk 0:02:57]} 3. g3 {[%clk 0:03:01]}  d5 {[%clk 0:02:56]} 4. Nf3 {[%clk 0:03:02]}  dxc4 {[%clk 0:02:57]} 5. Bg2 {[%clk 0:03:02]}  c6 {[%clk 0:02:57]} 6. Ne5 {[%clk 0:02:59]}  Bb4+ {[%clk 0:02:56]} 7. Bd2 {[%clk 0:02:56]}  Be7 {[%clk 0:02:56]} 8. e3 {[%clk 0:02:49]}  b5 {[%clk 0:02:56]} 9. Nxc6 {[%clk 0:02:46]}  Nxc6 {[%clk 0:02:57]} 10. Bxc6+ {[%clk 0:02:46]}  Bd7 {[%clk 0:02:57]} 11. Bxa8 {[%clk 0:02:40]}  Qxa8 {[%clk 0:02:58]} 12. O-O {[%clk 0:02:40]}  e5 {[%clk 0:02:56]} 13. dxe5 {[%clk 0:02:33]}  Bh3 {[%clk 0:02:55]} 14. f3 {[%clk 0:02:33]}  Ng4 {[%clk 0:02:54]} 15. Re1 {[%clk 0:02:07]}  Nxe5 {[%clk 0:02:54]} 16. e4 {[%clk 0:02:08]}  Nd3 {[%clk 0:02:44]} 17. Re2 {[%clk 0:02:06]}  Nxb2 {[%clk 0:02:38]} 18. Qc2 {[%clk 0:01:59]}  Nd3 {[%clk 0:02:37]} 19. Nc3 {[%clk 0:01:59]}  Qc6 {[%clk 0:02:25]} 20. Nd5 {[%clk 0:01:56]}  Bc5+ {[%clk 0:02:22]} 21. Be3 {[%clk 0:01:56]}  O-O {[%clk 0:02:19]} 22. Rd1 {[%clk 0:01:52]}  Ne5 {[%clk 0:02:16]} 23. Rf2 {[%clk 0:01:44]}  Bxe3 {[%clk 0:02:13]} 24. Ne7+ {[%clk 0:01:40]}  Kh8 {[%clk 0:02:12]} 25. Nxc6 {[%clk 0:01:41]}  Nxc6 {[%clk 0:02:07]} 26. Qc3 {[%clk 0:01:31]}  Bb6 {[%clk 0:01:38]} 27. Rd6 {[%clk 0:01:30]}  Rc8 {[%clk 0:01:29]} 28. g4 {[%clk 0:01:25]}  h5 {[%clk 0:00:55]} 29. Rh6+ {[%clk 0:01:08]}  Kg8 {[%clk 0:00:54]} 30. Rxh5 {[%clk 0:01:09]}  Nd4 {[%clk 0:00:55]} 31. Kh1 {[%clk 0:01:04]}  b4 {[%clk 0:00:54]} 32. Qc1 {[%clk 0:00:52]}  Nxf3 {[%clk 0:00:41]} 33. Rxh3 {[%clk 0:00:47]}  Bxf2 {[%clk 0:00:31]} 34. Rxf3 {[%clk 0:00:47]}  Bd4 {[%clk 0:00:32]} 35. Qc2 {[%clk 0:00:34]}  a5 {[%clk 0:00:31]} 36. Kg2 {[%clk 0:00:33]}  c3 {[%clk 0:00:30]} 37. Rd3 {[%clk 0:00:32]}  Be5 {[%clk 0:00:28]} 38. Rd5 {[%clk 0:00:32]}  f6 {[%clk 0:00:28]} 39. Rxa5 {[%clk 0:00:32]}  Kh7 {[%clk 0:00:16]} 40. g5 {[%clk 0:00:31]}  Kg6 {[%clk 0:00:15]} 41. gxf6 {[%clk 0:00:31]}  gxf6 {[%clk 0:00:16]} 42. Kf3 {[%clk 0:00:30]}  Rh8 {[%clk 0:00:08]} 43. Qg2+ {[%clk 0:00:30]}  Kf7 {[%clk 0:00:08]} 44. Ra7+ {[%clk 0:00:30]}  Ke6 {[%clk 0:00:08]} 45. Qg4+ {[%clk 0:00:30]}  Kd6 {[%clk 0:00:09]} 46. Qd7+ {[%clk 0:00:31]}  Kc5 {[%clk 0:00:09]} 47. Qd5+ {[%clk 0:00:31]}  Kb6 {[%clk 0:00:10]} 48. Rb7+ {[%clk 0:00:32]}  Ka6 {[%clk 0:00:10]} 49. Qb5# {[%clk 0:00:33]} 1-0


[Site "https://www.chess.com"]

[Event "Titled Tuesday Blitz January 10 Early 2023"]
[White "Mica, Marek"]
[Black "Rakhmanov, Aleksandr"]
[WhiteFideId "382884"]
[BlackFideId "4173708"]
[WhiteElo "2256"]
[BlackElo "2632"]
[Result "0-1"]
[Round "02"]
[TimeControl "180+2"]
[Date "2023.01.10"]
[WhiteClock "0:00:21"]
[BlackClock "0:00:24"]

1. d4 {[%clk 0:03:00]}  Nf6 {[%clk 0:02:58]} 2. c4 {[%clk 0:03:00]}  d6 {[%clk 0:02:58]} 3. Nc3 {[%clk 0:02:58]}  e5 {[%clk 0:02:59]} 4. Nf3 {[%clk 0:02:56]}  e4 {[%clk 0:02:59]} 5. Ng5 {[%clk 0:02:52]}  Qe7 {[%clk 0:02:59]} 6. e3 {[%clk 0:02:49]}  h6 {[%clk 0:02:58]} 7. Nh3 {[%clk 0:02:49]}  Bf5 {[%clk 0:02:56]} 8. Nf4 {[%clk 0:02:46]}  c6 {[%clk 0:02:57]} 9. h4 {[%clk 0:02:45]}  g6 {[%clk 0:02:56]} 10. Be2 {[%clk 0:02:45]}  h5 {[%clk 0:02:56]} 11. b4 {[%clk 0:02:38]}  Nbd7 {[%clk 0:02:56]} 12. a4 {[%clk 0:02:36]}  Bh6 {[%clk 0:02:57]} 13. g3 {[%clk 0:02:35]}  O-O {[%clk 0:02:56]} 14. Ba3 {[%clk 0:02:33]}  Bg4 {[%clk 0:02:47]} 15. Bxg4 {[%clk 0:02:23]}  Nxg4 {[%clk 0:02:48]} 16. Nce2 {[%clk 0:02:24]}  a6 {[%clk 0:02:41]} 17. b5 {[%clk 0:02:13]}  axb5 {[%clk 0:02:34]} 18. axb5 {[%clk 0:02:11]}  Ndf6 {[%clk 0:02:31]} 19. Qb3 {[%clk 0:02:02]}  Ra7 {[%clk 0:02:15]} 20. Kf1 {[%clk 0:01:54]}  Rfa8 {[%clk 0:02:12]} 21. Kg2 {[%clk 0:01:52]}  Qd7 {[%clk 0:02:05]} 22. Ra2 {[%clk 0:01:43]}  cxb5 {[%clk 0:02:00]} 23. cxb5 {[%clk 0:01:39]}  Ra5 {[%clk 0:01:56]} 24. Rb1 {[%clk 0:01:16]}  Kg7 {[%clk 0:01:49]} 25. Rbb2 {[%clk 0:01:05]}  g5 {[%clk 0:01:40]} 26. hxg5 {[%clk 0:01:03]}  Bxg5 {[%clk 0:01:41]} 27. Bb4 {[%clk 0:00:52]}  Rxa2 {[%clk 0:01:30]} 28. Rxa2 {[%clk 0:00:53]}  Rh8 {[%clk 0:01:17]} 29. Qa3 {[%clk 0:00:34]}  h4 {[%clk 0:01:04]} 30. Nh3 {[%clk 0:00:22]}  hxg3 {[%clk 0:00:49]} 31. Nxg5 {[%clk 0:00:21]}  Rh2+ {[%clk 0:00:24]} 32. Kxg3 {[%clk 0:00:21]}  Nh5# {[%clk 0:00:24]} 0-1


[Site "https://www.chess.com"]